lending/lending_fUSD_20240621
["ID","MTS","AMOUNT","RATE_DAILY","PERIOD"]
[330072916,1718987841091,-500.0,0.00022191,4]
[330072917,1718987841129,-544.53,0.00022191,4]
[330072918,1718987841166,-3430.64,0.00022191,4]
[330072919,1718987841204,-500.0,0.00022191,4]
[330072920,1718987841244,-500.0,0.00022191,4]
[330072921,1718987841283,-758.39,0.00022191,4]
[330072922,1718987841320,-500.0,0.00022191,4]
[330072923,1718987841357,-500.0,0.00022191,4]
[330072924,1718987841395,-259.07,0.00022191,4]
[330072925,1718987841432,-5415.73,0.00022191,4]
[330072926,1718987841470,-362.76,0.00022191,4]
[330072927,1718987841509,-500.0,0.00022191,4]
[330072929,1718987841547,-500.0,0.00022191,4]
[330072930,1718987841650,-200.0,0.00022191,2]
[330072931,1718987841689,-500.0,0.00022191,4]
[330072932,1718987841728,-500.0,0.00022191,4]
[330072933,1718987841765,-2446.49,0.00022191,4]
[330072934,1718987841803,-500.0,0.00022191,4]
[330072935,1718987841840,-500.0,0.00022191,4]
[330072936,1718987841876,-477.61,0.00022191,4]
[330072937,1718987841913,-500.0,0.00022191,4]
[330072938,1718987841952,-500.0,0.00022191,4]
[330072939,1718987841989,-500.0,0.00022191,4]
[330072940,1718987842025,-500.0,0.00022191,4]
[330072941,1718987842064,-291.65,0.00022191,4]
[330072942,1718987842104,-500.0,0.00022191,4]
[330072943,1718987842141,-192.53,0.00022191,4]
[330072944,1718987842178,-475.27,0.00022191,4]
[330072945,1718987842218,-500.0,0.00022191,4]
[330072946,1718987842260,-500.0,0.00022191,4]
[330072947,1718987842297,-500.0,0.00022191,4]
[330072948,1718987842336,-500.0,0.00022191,4]
[330072949,1718987842375,-199.83,0.00022191,4]
[330072950,1718987842417,-343.52,0.00022191,4]
[330072951,1718987842465,-500.0,0.00022191,4]
[330072952,1718987842511,-500.0,0.00022191,4]
[330072953,1718987842556,-477.9,0.00022191,4]
[330072954,1718987842602,-500.0,0.00022191,4]
[330072955,1718987842645,-488.95,0.00022191,4]
[330072956,1718987842683,-250.4,0.00022191,4]
[330072957,1718987842721,-1303.55,0.00022191,4]
[330072958,1718987842759,-500.0,0.00022191,4]
[330072959,1718987842798,-830.13,0.00022191,4]
[330072960,1718987842835,-152.010443,0.00022191,7]
[330072961,1718987842873,-500.0,0.00022191,4]
[330072962,1718987842910,-174.53,0.00022191,4]
[330072963,1718987842946,-500.0,0.00022191,4]
[330072964,1718987842997,-1291.68,0.00022191,4]
[330072965,1718987843041,-500.0,0.00022191,4]
[330072966,1718987843080,-500.0,0.00022191,4]
[330072967,1718987843123,-182.02,0.00022191,4]
[330072968,1718987843166,-500.0,0.00022191,4]
[330072969,1718987843210,-1279.46,0.00022191,4]
[330072970,1718987843262,-500.0,0.00022191,4]
[330072971,1718987843303,-269.31,0.00022191,4]
[330072972,1718987843344,-151.0,0.00022191,7]
[330072973,1718987843384,-564.71,0.00022191,4]
[330072974,1718987843426,-466.63,0.00022191,4]
[330072975,1718987843473,-500.0,0.00022191,4]
[330072976,1718987843523,-500.0,0.00022191,4]
[330072977,1718987843568,-500.0,0.00022191,4]
[330072978,1718987843606,-500.0,0.00022191,4]
[330072979,1718987843644,-163.70049,0.00022191,2]
[330072980,1718987843683,-265.5,0.00022191,4]
[330072981,1718987843722,-500.0,0.00022191,4]
[330072982,1718987843766,-822.67,0.00022191,4]
[330072983,1718987843809,-315.54,0.00022191,4]
[330072984,1718987843847,-500.0,0.00022191,4]
[330072985,1718987843888,-500.0,0.00022191,4]
[330072986,1718987843927,-8298.94,0.00022191,4]
[330072987,1718987843965,-378.77,0.00022191,4]
[330072988,1718987844001,-500.0,0.00022191,4]
[330072989,1718987844043,-156.57,0.00022191,4]
[330072990,1718987844087,-516.21,0.00022191,4]
[330072991,1718987844131,-500.0,0.00022191,4]
[330072992,1718987844173,-353.88,0.00022191,4]
[330072993,1718987844212,-392.4,0.00022191,4]
[330072994,1718987844253,-500.0,0.00022191,4]
[330072995,1718987844296,-500.0,0.00022191,4]
[330072996,1718987844336,-500.0,0.00022191,4]
[330072997,1718987844375,-5985.46,0.00022191,4]
[330072998,1718987844415,-3884.65,0.00022191,4]
[330072999,1718987844458,-321.53,0.00022191,4]
[330073000,1718987844501,-4134.18,0.00022191,4]
[330073001,1718987844544,-500.0,0.00022191,4]
[330073002,1718987844584,-180.78,0.00022191,4]
[330073003,1718987844623,-500.0,0.00022191,4]
[330073004,1718987844661,-500.0,0.00022191,4]
[330073005,1718987844700,-456.17,0.00022191,4]
[330073006,1718987844740,-500.0,0.00022191,4]
[330073007,1718987844786,-500.0,0.00022191,4]
[330073008,1718987844828,-247.95,0.00022191,4]
[330073009,1718987844867,-2301.88,0.00022191,4]
[330073010,1718987844907,-500.0,0.00022191,4]
[330073011,1718987844946,-466.99384679,0.00022191,4]
[330073012,1718987844985,-500.0,0.00022191,4]
[330073013,1718987845024,-167.94,0.00022191,4]
[330073014,1718987845063,-500.0,0.00022191,4]
[330073015,1718987845101,-500.0,0.00022191,4]
[330073016,1718987845139,-415.87,0.00022191,4]
[330073017,1718987845184,-500.0,0.00022191,4]
[330073018,1718987845225,-7012.24,0.00022191,4]
[330073019,1718987845268,-500.0,0.00022191,4]
[330073020,1718987845315,-420.79,0.00022191,4]
[330073021,1718987845355,-500.0,0.00022191,4]
[330073022,1718987845395,-286.93,0.00022191,4]
[330073023,1718987845437,-2038.36,0.00022191,4]
[330073024,1718987845479,-533.31,0.00022191,4]
[330073025,1718987845524,-500.0,0.00022191,4]
[330073026,1718987845568,-270.17,0.00022191,4]
[330073027,1718987845612,-500.0,0.00022191,4]
[330073028,1718987845655,-229.79,0.00022191,4]
[330073029,1718987845696,-150.0,0.00022191,4]
[330073030,1718987845738,-500.0,0.00022191,4]
[330073031,1718987845779,-625.57,0.00022191,4]
[330073032,1718987845826,-500.0,0.00022191,4]
[330073033,1718987845865,-9076.26,0.00022191,4]
[330073034,1718987845911,-272.03,0.00022191,4]
[330073035,1718987845953,-444.02,0.00022191,4]
[330073036,1718987846004,-787.23,0.00022191,4]
[330073037,1718987846055,-500.0,0.00022191,4]
[330073038,1718987846094,-617.89,0.00022191,4]
[330073039,1718987846132,-5322.73,0.00022191,4]
[330073040,1718987846173,-500.0,0.00022191,4]
[330073041,1718987846213,-500.0,0.00022191,4]
[330073042,1718987846253,-318.8,0.00022191,4]
[330073043,1718987846301,-500.0,0.00022191,4]
[330073044,1718987846340,-342.38,0.00022191,4]
[330073045,1718987846381,-176.31,0.00022191,4]
[330073046,1718987846425,-500.0,0.00022191,4]
[330073047,1718987846467,-518.75,0.00022191,4]
[330073048,1718987846792,-183.43,0.00022191,4]
[330073049,1718987846833,-786.54,0.00022191,4]
[330073050,1718987846874,-197.02,0.00022191,4]
[330073051,1718987846910,-497.48,0.00022191,4]
[330073052,1718987846948,-814.46,0.00022191,4]
[330073053,1718987846988,-272.42,0.00022191,4]
[330073054,1718987847028,-500.0,0.00022191,4]
[330073055,1718987847067,-36888.3,0.00022191,4]
[330073056,1718987847107,-500.0,0.00022191,4]
[330073057,1718987847146,-766.73,0.00022191,4]
[330073058,1718987847184,-1301.5,0.00022191,4]
[330073059,1718987847223,-1427.93,0.00022191,4]
[330073060,1718987847265,-408.18,0.00022191,4]
[330073061,1718987847302,-500.0,0.00022191,4]
[330073062,1718987847342,-500.0,0.00022191,4]
[330073063,1718987847381,-500.0,0.00022191,4]
[330073064,1718987847420,-496.65,0.00022191,4]
[330073065,1718987847464,-2043.27,0.00022191,4]
[330073066,1718987847504,-500.0,0.00022191,4]
[330073067,1718987847548,-663.49,0.00022191,4]
[330073068,1718987847587,-1008.14,0.00022191,4]
[330073069,1718987847627,-706.96,0.00022191,4]
[330073070,1718987847665,-634.02694116,0.00022191,4]
[330073071,1718987847709,-1205.82,0.00022191,4]
[330073072,1718987847755,-1856.06,0.00022191,4]
[330073073,1718987847794,-500.0,0.00022191,4]
[330073074,1718987847832,-1877.87,0.00022191,4]
[330073075,1718987847874,-933.95,0.00022191,4]
[330073076,1718987847915,-560.78,0.00022191,4]
[330073077,1718987847956,-500.0,0.00022191,4]
[330073078,1718987847995,-1609.52,0.00022191,4]
[330073079,1718987848037,-2433.25,0.00022191,4]
[330073080,1718987848075,-4752.09,0.00022191,4]
[330073081,1718987848113,-2507.47,0.00022191,4]
[330073082,1718987848152,-500.0,0.00022191,4]
[330073083,1718987848190,-571.47,0.00022191,4]
[330073084,1718987848229,-506.99,0.00022191,4]
[330073085,1718987848268,-500.0,0.00022191,4]
[330073086,1718987848309,-500.0,0.00022191,4]
[330073087,1718987848348,-500.0,0.00022191,4]
[330073088,1718987848387,-500.0,0.00022191,4]
[330073089,1718987848427,-500.0,0.00022191,4]
[330073090,1718987848466,-500.0,0.00022191,4]
[330073091,1718987848505,-1402.7,0.00022191,4]
[330073092,1718987848547,-581.4,0.00022191,4]
[330073093,1718987848586,-1860.65,0.00022191,4]
[330073094,1718987848625,-1808.02,0.00022191,4]
[330073095,1718987848665,-500.0,0.00022191,4]
[330073096,1718987848706,-3956.66,0.00022191,4]
[330073097,1718987848747,-2352.73,0.00022191,4]
[330073098,1718987848792,-1147.19,0.00022191,4]
[330073099,1718987848833,-994.96,0.00022191,4]
[330073100,1718987848871,-500.0,0.00022191,4]
[330073101,1718987848909,-1332.36,0.00022191,4]
[330073102,1718987848948,-500.0,0.00022191,4]
[330073103,1718987848987,-500.0,0.00022191,4]
[330073104,1718987849029,-6153.32,0.00022191,4]
[330073105,1718987849069,-912.03,0.00022191,4]
[330073106,1718987849110,-500.0,0.00022191,4]
[330073107,1718987849149,-633.59,0.00022191,4]
[330073108,1718987849188,-500.0,0.00022191,4]
[330073109,1718987849228,-1668.4,0.00022191,4]
[330073110,1718987849271,-500.0,0.00022191,4]
[330073111,1718987849309,-1241.18,0.00022191,4]
[330073112,1718987849347,-1036.27,0.00022191,4]
[330073113,1718987849384,-544.39,0.00022191,4]
[330073114,1718987849428,-574.92,0.00022191,4]
[330073115,1718987849467,-1356.63,0.00022191,4]
[330073116,1718987849509,-1240.18,0.00022191,4]
[330073117,1718987849550,-500.0,0.00022191,4]
[330073118,1718987849593,-915.59,0.00022191,4]
[330073119,1718987849637,-500.0,0.00022191,4]
[330073120,1718987849681,-2552.43,0.00022191,4]
[330073121,1718987849723,-1187.17,0.00022191,4]
[330073122,1718987849767,-150.30613092,0.00022227,2]
[330073123,1718987849807,-2038.441795,0.00022253,2]
[330073124,1718987849846,-2120.0351,0.00022253,2]
[330073125,1718987849885,-996.14453956,0.00022266,2]
[330073126,1718987849924,-169.42797267,0.00022285,2]
[330073127,1718987849962,-159.38148321,0.00022357,2]
[330073128,1718987849999,-150.30613092,0.00022365,2]
[330073129,1718987850037,-169.75322858,0.00022365,2]
[330073130,1718987850075,-150.0,0.00022423,10]
[330073131,1718987850112,-150.0,0.00022423,10]
[330073132,1718987850149,-150.0,0.00022423,10]
[330073133,1718987850193,-151.0,0.00022424,7]
[330073134,1718987850232,-500.0,0.00022463,4]
[330073135,1718987850270,-447.30390222,0.00022463,4]
[330073136,1718987850308,-2830.3,0.00022463,4]
[330073137,1718987850345,-150.0,0.00022464,10]
[330073138,1718987850382,-150.0,0.00022464,10]
[330073139,1718987850421,-150.0,0.00022464,10]
[330073140,1718987850465,-500.0,0.00022464,4]
[330073141,1718987850503,-594.41,0.00022464,4]
[330073142,1718987850908,-471.37,0.00022464,4]
[330073143,1718987850948,-500.0,0.00022464,4]
[330073144,1718987850988,-2381.91,0.00022464,4]
[330073145,1718987851027,-11941.27,0.00022464,4]
[330073146,1718987851066,-4326.85,0.00022464,4]
[330073147,1718987851105,-1250.85,0.00022465,4]
[330073148,1718987851146,-500.0,0.00022465,4]
[330073149,1718987851185,-500.0,0.00022465,4]
[330073150,1718987851226,-427.95626408,0.00022465,4]
[330073151,1718987851269,-500.0,0.00022465,4]
[330073152,1718987851309,-500.0,0.00022465,4]
[330073153,1718987851349,-500.0,0.00022465,4]
[330073154,1718987851386,-500.0,0.00022465,4]
[330073155,1718987851429,-500.0,0.00022465,4]
[330073156,1718987851469,-609.38,0.00022465,4]
[330073157,1718987851510,-500.0,0.00022465,4]
[330073158,1718987851554,-500.0,0.00022465,4]
[330073159,1718987851593,-1000.0,0.00022465,4]
[330073160,1718987851632,-500.0,0.00022465,4]
[330073161,1718987851672,-381.12,0.00022465,4]
[330073162,1718987851713,-4795.86,0.00022465,4]
[330073163,1718987851753,-207.31961585,0.00022465,4]
[330073164,1718987851796,-500.0,0.00022465,4]
[330073165,1718987851838,-500.0,0.00022465,4]
[330073166,1718987851876,-462.95,0.00022465,4]
[330073167,1718987851913,-544.53,0.00022465,4]
[330073168,1718987851951,-3430.64,0.00022465,4]
[330073169,1718987851989,-500.0,0.00022465,4]
[330073170,1718987852028,-500.0,0.00022465,4]
[330073171,1718987852063,-758.39,0.00022465,4]
[330073172,1718987852100,-500.0,0.00022465,4]
[330073173,1718987852138,-372.47,0.00022465,4]
[330073174,1718987852176,-5415.73,0.00022465,4]
[330073175,1718987852214,-199.26,0.00022465,4]
[330073176,1718987852252,-427.35,0.00022465,4]
[330073177,1718987852288,-556.34,0.00022465,4]
[330073178,1718987852325,-322.68,0.00022465,4]
[330073179,1718987852362,-2446.49,0.00022465,4]
[330073180,1718987852400,-500.0,0.00022465,4]
[330073181,1718987852441,-602.35775886,0.00022465,4]
[330073182,1718987852480,-500.0,0.00022465,4]
[330073183,1718987852520,-500.0,0.00022465,4]
[330073184,1718987852559,-500.0,0.00022465,4]
[330073185,1718987852598,-500.0,0.00022465,4]
[330073186,1718987852637,-156.90613,0.00022465,7]
[330073187,1718987852681,-500.0,0.00022465,4]
[330073188,1718987852727,-500.0,0.00022465,4]
[330073189,1718987852769,-500.0,0.00022465,4]
[330073190,1718987852814,-500.0,0.00022465,4]
[330073191,1718987852853,-500.0,0.00022465,4]
[330073192,1718987852894,-646.62,0.00022465,4]
[330073193,1718987852931,-500.0,0.00022465,4]
[330073194,1718987852969,-500.0,0.00022465,4]
[330073195,1718987853008,-1303.55,0.00022465,4]
[330073196,1718987853048,-500.0,0.00022465,4]
[330073197,1718987853087,-830.13,0.00022465,4]
[330073198,1718987853124,-500.0,0.00022465,4]
[330073199,1718987853163,-304.29,0.00022465,4]
[330073200,1718987853204,-1291.68,0.00022465,4]
[330073201,1718987853242,-500.0,0.00022465,4]
[330073202,1718987853279,-500.0,0.00022465,4]
[330073203,1718987853317,-422.04,0.00022465,4]
[330073204,1718987853356,-1279.46,0.00022465,4]
[330073205,1718987853396,-246.85,0.00022465,4]
[330073206,1718987853437,-151.0,0.00022465,7]
[330073207,1718987853478,-212.773656,0.00022465,7]
[330073208,1718987853519,-500.0,0.00022465,4]
[330073209,1718987853559,-500.0,0.00022465,4]
[330073210,1718987853598,-413.38,0.00022465,4]
[330073211,1718987853638,-442.92,0.00022465,4]
[330073212,1718987853678,-374.74,0.00022465,4]
[330073213,1718987853717,-822.67,0.00022465,4]
[330073214,1718987853754,-500.0,0.00022465,4]
[330073215,1718987853795,-500.0,0.00022465,4]
[330073216,1718987853833,-8298.94,0.00022465,4]
[330073217,1718987853873,-582.42,0.00022465,4]
[330073218,1718987853910,-297.54700097,0.00022465,4]
[330073219,1718987853949,-151.0,0.00022465,7]
[330073220,1718987854052,-500.0,0.00022465,4]
[330073221,1718987854097,-567.1,0.00022465,4]
[330073222,1718987854138,-334.41,0.00022465,4]
[330073223,1718987854181,-5985.46,0.00022465,4]
[330073224,1718987854220,-3884.65,0.00022465,4]
[330073225,1718987854256,-151.0,0.00022465,7]
[330073226,1718987854294,-151.0,0.00022465,7]
[330073227,1718987854330,-4134.18,0.00022465,4]
[330073228,1718987854367,-151.0,0.00022465,7]
[330073229,1718987854404,-500.0,0.00022465,4]
[330073230,1718987854441,-151.0,0.00022465,7]
[330073231,1718987854476,-500.0,0.00022465,4]
[330073232,1718987854515,-500.0,0.00022465,4]
[330073233,1718987854553,-256.24,0.00022465,4]
[330073234,1718987854591,-500.0,0.00022465,4]
[330073235,1718987854628,-2301.88,0.00022465,4]
[330073236,1718987854664,-500.0,0.00022465,4]
[330073237,1718987854700,-500.0,0.00022465,4]
[330073238,1718987854736,-500.0,0.00022465,4]
[330073239,1718987854775,-500.0,0.00022465,4]
[330073240,1718987854812,-500.0,0.00022465,4]
[330073242,1718987854847,-7012.24,0.00022465,4]
[330073243,1718987854885,-500.0,0.00022465,4]
[330073244,1718987854924,-500.0,0.00022465,4]
[330073245,1718987854962,-151.0,0.00022465,7]
[330073246,1718987855000,-151.0,0.00022465,7]
[330073247,1718987855040,-2038.36,0.00022465,4]
[330073248,1718987855077,-151.0,0.00022465,7]
[330073249,1718987855116,-500.0,0.00022465,4]
[330073250,1718987855152,-500.0,0.00022465,4]
[330073251,1718987855190,-151.0,0.00022465,7]
[330073252,1718987855229,-500.0,0.00022465,4]
[330073253,1718987855269,-282.662118,0.00022465,7]
[330073254,1718987855308,-625.57,0.00022465,4]
[330073255,1718987855345,-500.0,0.00022465,4]
[330073256,1718987855384,-9076.26,0.00022465,4]
[330073257,1718987855427,-787.23,0.00022465,4]
[330073258,1718987855466,-469.38,0.00022465,4]
[330073259,1718987855506,-617.89,0.00022465,4]
[330073260,1718987855548,-5322.73,0.00022465,4]
[330073261,1718987855587,-562.09,0.00022465,4]
[330073262,1718987855626,-500.0,0.00022465,4]
[330073263,1718987855665,-500.0,0.00022465,4]
[330073264,1718987855704,-151.0,0.00022465,7]
[330073265,1718987855745,-449.96,0.00022465,4]
[330073266,1718987855782,-786.54,0.00022465,4]
[330073267,1718987855818,-814.46,0.00022465,4]
[330073268,1718987855854,-221.9,0.00022465,4]
[330073269,1718987855890,-36888.3,0.00022465,4]
[330073270,1718987855927,-500.0,0.00022465,4]
[330073271,1718987855963,-766.73,0.00022465,4]
[330073272,1718987856000,-1301.5,0.00022465,4]
[330073273,1718987856039,-1427.93,0.00022465,4]
[330073274,1718987856077,-500.0,0.00022465,4]
[330073275,1718987856115,-500.0,0.00022465,4]
[330073276,1718987856155,-500.0,0.00022465,4]
[330073277,1718987856196,-2043.27,0.00022465,4]
[330073278,1718987856241,-500.0,0.00022465,4]
[330073279,1718987856281,-663.49,0.00022465,4]
[330073280,1718987856322,-1008.14,0.00022465,4]
[330073281,1718987856360,-706.96,0.00022465,4]
[330073282,1718987856398,-1205.82,0.00022465,4]
[330073283,1718987856436,-1856.06,0.00022465,4]
[330073284,1718987856473,-623.93602052,0.00022465,4]
[330073285,1718987856511,-1877.87,0.00022465,4]
[330073286,1718987856549,-800.84762881,0.00022465,2]
[330073287,1718987856587,-933.95,0.00022465,4]
[330073288,1718987856625,-560.78,0.00022465,4]
[330073289,1718987856663,-500.0,0.00022465,4]
[330073290,1718987856702,-1609.52,0.00022465,4]
[330073291,1718987856740,-2433.25,0.00022465,4]
[330073292,1718987856777,-4752.09,0.00022465,4]
[330073293,1718987856816,-500.0,0.00022465,4]
[330073294,1718987856854,-2507.47,0.00022465,4]
[330073295,1718987856894,-571.47,0.00022465,4]
[330073296,1718987856938,-500.0,0.00022465,4]
[330073297,1718987856976,-506.99,0.00022465,4]
[330073298,1718987857013,-500.0,0.00022465,4]
[330073299,1718987857049,-500.0,0.00022465,4]
[330073300,1718987857086,-500.0,0.00022465,4]
[330073301,1718987857122,-201.11998004,0.00022465,4]
[330073302,1718987857161,-500.0,0.00022465,4]
[330073303,1718987857198,-1402.7,0.00022465,4]
[330073304,1718987857236,-581.4,0.00022465,4]
[330073305,1718987857274,-1860.65,0.00022465,4]
[330073306,1718987857310,-1808.02,0.00022465,4]
[330073307,1718987857345,-500.0,0.00022465,4]
[330073308,1718987857381,-3956.66,0.00022465,4]
[330073309,1718987857417,-2352.73,0.00022465,4]
[330073310,1718987857455,-1147.19,0.00022465,4]
[330073311,1718987857495,-994.96,0.00022465,4]
[330073312,1718987857532,-500.0,0.00022465,4]
[330073313,1718987857568,-1332.36,0.00022465,4]
[330073314,1718987857606,-500.0,0.00022465,4]
[330073315,1718987857642,-498.55043632,0.00022465,4]
[330073316,1718987857678,-6153.32,0.00022465,4]
[330073317,1718987857718,-912.03,0.00022465,4]
[330073318,1718987857755,-500.0,0.00022465,4]
[330073319,1718987857794,-633.59,0.00022465,4]
[330073320,1718987857831,-500.0,0.00022465,4]
[330073321,1718987857866,-1668.4,0.00022465,4]
[330073322,1718987857902,-500.0,0.00022465,4]
[330073323,1718987857941,-1241.18,0.00022465,4]
[330073324,1718987857979,-1036.27,0.00022465,4]
[330073325,1718987858023,-544.39,0.00022465,4]
[330073326,1718987858059,-574.92,0.00022465,4]
[330073327,1718987858096,-1356.63,0.00022465,4]
[330073328,1718987858134,-1240.18,0.00022465,4]
[330073329,1718987858170,-500.0,0.00022465,4]
[330073330,1718987858208,-915.59,0.00022465,4]
[330073331,1718987858246,-500.0,0.00022465,4]
[330073332,1718987858282,-2552.43,0.00022465,4]
[330073333,1718987858318,-7409.25,0.00022475,2]
[330073334,1718987858355,-169.42797267,0.00022487,2]
[330073335,1718987858392,-150.0,0.00022499,10]
[330073336,1718987858435,-150.0,0.00022499,10]
[330073337,1718987858479,-150.0,0.00022499,10]
[330073338,1718987858525,-150.30613092,0.00022502,2]
[330073339,1718987858739,-176.663581,0.00022521,2]
[330073340,1718987858780,-2038.441795,0.00022521,2]
[330073341,1718987858818,-2120.0351,0.00022521,2]
[330073342,1718987858857,-159.38148321,0.00022624,2]
[330073343,1718987858896,-161.2550804,0.00022639,2]
[330073344,1718987858934,-150.30613092,0.00022639,2]
[330073345,1718987858972,-161.25508038,0.00022675,2]
[330073346,1718987859010,-169.42797267,0.00022688,2]
[330073347,1718987859050,-150.0,0.00022693,10]
[330073348,1718987859088,-150.0,0.00022693,10]
[330073349,1718987859127,-150.0,0.00022693,10]
[330073350,1718987859169,-161.25508038,0.00022711,2]
[330073351,1718987859208,-209.38100041,0.0002272,2]
[330073352,1718987859247,-5907.85263176,0.0002272,2]
[330073353,1718987859286,-500.0,0.00022737,4]
[330073354,1718987859326,-2830.3,0.00022737,4]
[330073355,1718987859363,-500.0,0.00022738,4]
[330073356,1718987859404,-594.41,0.00022738,4]
[330073357,1718987859446,-500.0,0.00022738,4]
[330073358,1718987859486,-2381.91,0.00022738,4]
[330073359,1718987859523,-11941.27,0.00022738,4]
[330073360,1718987859562,-4326.85,0.00022738,4]
[330073361,1718987859599,-500.0,0.00022739,4]
[330073362,1718987859638,-500.0,0.00022739,4]
[330073363,1718987859676,-500.0,0.00022739,4]
[330073364,1718987859713,-500.0,0.00022739,4]
[330073365,1718987859752,-284.98222876,0.00022739,4]
[330073366,1718987859795,-500.0,0.00022739,4]
[330073367,1718987859834,-500.0,0.00022739,4]
[330073368,1718987859873,-500.0,0.00022739,4]
[330073369,1718987859913,-644.23,0.00022739,4]
[330073370,1718987859952,-500.0,0.00022739,4]
[330073371,1718987859989,-500.0,0.00022739,4]
[330073372,1718987860027,-500.0,0.00022739,4]
[330073373,1718987860064,-500.0,0.00022739,4]
[330073374,1718987860102,-500.0,0.00022739,4]
[330073375,1718987860139,-500.0,0.00022739,4]
[330073376,1718987860176,-517.03,0.00022739,4]
[330073377,1718987860212,-592.18227584,0.00022739,4]
[330073378,1718987860250,-1350.95,0.00022739,4]
[330073379,1718987860292,-500.0,0.00022739,4]
[330073380,1718987860329,-692.01,0.00022739,4]
[330073381,1718987860367,-500.0,0.00022739,4]
[330073382,1718987860406,-553.65,0.00022739,4]
[330073383,1718987860445,-500.0,0.00022739,4]
[330073384,1718987860484,-500.0,0.00022739,4]
[330073385,1718987860525,-857.44,0.00022739,4]
[330073386,1718987860564,-721.1,0.00022739,4]
[330073387,1718987860603,-662.92,0.00022739,4]
[330073388,1718987860642,-504.48,0.00022739,4]
[330073389,1718987860682,-500.0,0.00022739,4]
[330073390,1718987860721,-500.0,0.00022739,4]
[330073391,1718987860760,-500.0,0.00022739,4]
[330073392,1718987860806,-1011.28,0.00022739,4]
[330073393,1718987860844,-500.0,0.00022739,4]
[330073394,1718987860882,-651.95,0.00022739,4]
[330073395,1718987860920,-500.0,0.00022739,4]
[330073396,1718987860959,-1051.08,0.00022739,4]
[330073397,1718987860998,-500.0,0.00022739,4]
[330073398,1718987861037,-617.23,0.00022739,4]
[330073399,1718987861076,-1345.15,0.00022739,4]
[330073400,1718987861118,-500.0,0.00022739,4]
[330073401,1718987861158,-925.63,0.00022739,4]
[330073402,1718987861197,-636.71692825,0.00022739,4]
[330073403,1718987861235,-656.75,0.00022739,4]
[330073404,1718987861275,-1076.93,0.00022739,4]
[330073405,1718987861312,-500.0,0.00022739,4]
[330073406,1718987861350,-1105.98,0.00022739,4]
[330073407,1718987861387,-500.0,0.00022739,4]
[330073408,1718987861428,-500.0,0.00022739,4]
[330073409,1718987861468,-1053.13,0.00022739,4]
[330073410,1718987861508,-500.0,0.00022739,4]
[330073411,1718987861548,-1003.58,0.00022739,4]
[330073412,1718987861586,-370.11456504,0.00022739,4]
[330073413,1718987861625,-672.47,0.00022739,4]
[330073414,1718987861664,-500.0,0.00022739,4]
[330073415,1718987861702,-665.01,0.00022739,4]
[330073416,1718987861740,-500.0,0.00022739,4]
[330073417,1718987861778,-557.40539074,0.00022739,4]